Cogmind - Beta 14 @@@ ROGUE MODE // 2025.05.02 @ 16:47:16 Player: Quartz Result: Destroyed by S-10 Pest with Light Assault Rifle Performance ------------- Evolutions (0) 0 Regions Visited (2) 400 Robots Destroyed (29) 145 Value Destroyed (546) 546 Prototype IDs (2) 40 Alien Tech Used (0) 0 Bonus (0) 0 TOTAL SCORE: 1131 Bonus ------- None Cogmind --------- Core Integrity 0/250 Matter 151/300 Energy 246/250 System Corruption 2% Temperature Cool (82) Movement Treading (240) Ox1 Location -10/Mines Parts ------- > --- POWER (1) -------- Ion Engine > --- PROPULSION (2) --- Light Treads Light Treads > --- UTILITY (2) ------ High-capacity Storage Unit Seismic Detector > --- WEAPON (2) ------- Beam Cannon Light Assault Rifle > --- INVENTORY (20) --- Light Ion Engine Large Matter Pod (0) Signal Interpreter Signal Interpreter Transport Network Coupler Propulsion Shielding Utility Shielding Light Armor Plating Backup Laser I Light Cannon Grenade Launcher Rocket Launcher Welding Torch Peak State ------------ > --- POWER ------------ Ion Engine > --- PROPULSION ------- Light Treads Light Treads > --- UTILITY ---------- High-capacity Storage Unit Seismic Detector > --- WEAPON ----------- Light Assault Rifle Rocket Launcher > --- INVENTORY -------- Light Ion Engine Large Matter Pod Signal Interpreter Signal Interpreter Transport Network Coupler Propulsion Shielding Utility Shielding Light Armor Plating Backup Laser I Beam Cannon Light Assault Rifle Light Cannon Grenade Launcher Welding Torch [Rating: 9] Favorites ----------- Power Ion Engine Engine Ion Engine Propulsion Light Treads Treads Light Treads Utility Seismic Detector Device Seismic Detector Storage Large Storage Unit Weapon Light Assault Rifle Energy Gun Backup Laser I Energy Cannon Beam Cannon Ballistic Gun Light Assault Rifle Ballistic Cannon Light Cannon Launcher Grenade Launcher Special Weapon Welding Torch Build | -11 -10 -10 ------- Run | Yrd Mat Min Slots Evolved . | . . . Power . | . . . Propulsion . | . . . Utility . | . . . Weapon . | . . . Parts Attached 25 | 6 15 4 Power 2 | 1 1 . Engine 2 | 1 1 . Core . | . . . Reactor . | . . . Propulsion 4 | 2 2 . Treads 4 | 2 2 . Leg . | . . . Wheel . | . . . Hover . | . . . Flight . | . . . Utility 4 | 1 3 . Device 1 | . 1 . Storage 3 | 1 2 . Processor . | . . . Hackware . | . . . Protection . | . . . Artifact . | . . . Weapon 15 | 2 9 4 Energy Gun 2 | . 2 . Energy Cannon 1 | . . 1 Ballistic Gun 6 | 2 2 2 Ballistic Cannon 1 | . 1 . Launcher 4 | . 3 1 Special Weapon 1 | . 1 . Impact Weapon . | . . . Slashing Weapon . | . . . Piercing Weapon . | . . . Special Melee Weapon . | . . . Unidentified Prototypes . | . . . Parts Lost 7 | . 6 1 Power 1 | . 1 . Propulsion 2 | . 2 . Utility . | . . . Weapon 4 | . 3 1 Highest Loss Streak 4 | . 4 1 To Critical Strikes . | . . . Average Slot Usage (%) 92 | . 91 98 Engine 13 | . 13 14 Treads 23 | . 22 28 Device 13 | . 12 14 Storage 14 | . 14 14 Energy Gun 7 | . 8 1 Ballistic Gun 15 | . 13 23 Ballistic Cannon 1 | . 2 . Special Weapon 1 | . 1 . Peak Build Rating 9 | 6 8 9 Average Rating 6 | 3 6 7 On Entrance 4 | . 6 8 Naked Turns . | . . . Heaviest Build 51 | 13 48 51 Greatest Support 40 | 40 40 40 Greatest Overweight (x) 9 | . 9 1 Average Overweight (x) . | . . 1 Largest Inventory Capacity 20 | 8 20 20 Average Capacity 15 | 6 14 20 Most Carried 15 | 4 13 15 Average Carried 8 | 1 7 13 Final Capacity 20 | 8 20 20 Final Carried 13 | 1 12 13 Class Distribution -------------------- 100% | Mutant Dominant Class ---------------- Mutant | -10/Materials Mutant | -10/Mines Resources | -11 -10 -10 ----------- Run | Yrd Mat Min Matter Collected 657 | 271 336 50 Remotely . | . . . Salvage Created 815 | 68 697 50 Parts 61 | 3 49 9 Haulers Intercepted 2 | . 2 . Recyclers Shooed 4 | 1 2 1 Parts Field Recycled . | . . . Retrieved Matter . | . . . Parts Self-Destructed . | . . . Prevented . | . . . Kills | -11 -10 -10 ------- Run | Yrd Mat Min Combat Hostiles Destroyed 18 | . 15 3 Guns 8 | . 5 3 Cannons 3 | . 3 . AOE 7 | . 7 . Classes Destroyed 7 | 2 5 . Builder 2 | . 2 . Tunneler 1 | 1 . . Hauler 2 | . 2 . Recycler 5 | 1 4 . Watcher 1 | . 1 . Swarmer 9 | . 6 3 Grunt 9 | . 9 . Best Kill Streak 6 | 2 6 3 Combat Bots Only 6 | . 6 3 Max Kills in Single Turn 5 | 1 5 1 Gunslinging . | . . . Exploded 4 | . 4 . Melee . | . . . Uniques/NPCs Destroyed . | . . . Combat | -11 -10 -10 -------- Run | Yrd Mat Min Hostile Shots Fired 133 | . 95 38 Missed 28 | . 18 10 Damage Taken 1384 | . 956 428 Core 255 | . 192 63 Absorbed by Shields . | . . . Regen/Repaired (Parts) 57 | . 57 . Core Remaining (%) 100 | 100 . . Volleys Fired 107 | 15 73 19 Largest 2 | 1 2 2 Hottest 80 | 20 75 80 Shots Fired 164 | 15 111 38 Gun 119 | 15 77 27 Cannon 34 | . 28 6 Launcher 11 | . 6 5 Special . | . . . Kinetic 116 | 15 78 23 Thermal 37 | . 27 10 Explosive 11 | . 6 5 Electromagnetic . | . . . Robot Hit Streak 11 | 4 11 4 Robot Miss Streak 4 | 2 4 2 Penetration Max . | . . . Secondary Targets 1 | . . 1 Max Gunslinging Chain 1 | . . 1 Shots Hit Robots 98 | 9 74 15 Core Hits 52 | 3 44 5 Critical Kills . | . . . Critical Parts Destroyed . | . . . Critical Strikes 1 | . 1 . Blast 1 | . 1 . Melee Attacks . | . . . Impact . | . . . Slashing . | . . . Piercing . | . . . Sneak Attacks . | . . . Combat Hostiles . | . . . Follow-up Attacks . | . . . Damage Inflicted 1674 | 124 1409 141 Guns 782 | 124 535 123 Cannons 280 | . 262 18 Explosions 612 | . 612 . Melee . | . . . Ramming . | . . . Kinetic 796 | 124 578 94 Thermal 339 | . 292 47 Explosive 539 | . 539 . Electromagnetic . | . . . Impact . | . . . Slashing . | . . . Piercing . | . . . Highest Corruption 2 | . . 2 Average Corruption 2 | . . 2 Corruption Purged . | . . . Corruption Blocked . | . . . Overload Shots . | . . . Overflow Damage 112 | . 112 . Projectiles 1 | . 1 . Explosions 111 | . 111 . Melee . | . . . Knockbacks 3 | . 3 . Impact . | . . . Kinetic 3 | . 3 . Secondary . | . . . Self-Inflicted Damage 143 | . 118 25 Shots 4 | . 3 1 Rammed . | . . . Targets Rammed . | . . . Kicked . | . . . Crushed . | . . . Highest Temperature 100 | . 75 100 Average Temperature 21 | . 17 34 Received Heat Transfer 378 | . 378 . Siege Activations . | . . . Robots Corrupted . | . . . Combat Hostiles . | . . . Parts Fried . | . . . Impact Corruptions . | . . . Robots Melted . | . . . Combat Hostiles . | . . . Parts Melted . | . . . Heat Transferred 698 | . 550 148 Parts Sabotaged . | . . . Parts Stolen . | . . . Parts Stripped . | . . . Power Chain Reactions . | . . . Alert | -11 -10 -10 ------- Run | Yrd Mat Min Peak Influence 314 | 10 314 132 Initial 45 | . 6 45 Average 135 | 5 155 98 Maximum Alert Level 1 | . 1 . Low Security (%) 63 | 100 50 100 Level 1 36 | . 49 . Level 2 . | . . . Level 3 . | . . . Level 4 . | . . . Level 5 . | . . . High Security . | . . . Max Security . | . . . Squads Dispatched 2 | . 2 . Investigation 1 | . 1 . Extermination . | . . . Reinforcement 1 | . 1 . Assault . | . . . Garrison . | . . . Intercept . | . . . Searches Triggered . | . . . Construction Impeded . | . . . Haulers Reinforced . | . . . Active Scanning Responses . | . . . Cargo Convoy Interrupts . | . . . Stealth | -11 -10 -10 --------- Run | Yrd Mat Min Distress Signals 1 | . 1 . Communications Jammed . | . . . Distress Signals . | . . . Times Spotted 30 | . 24 6 Peak Tracking Total 10 | . 10 3 Tactical Retreats 1 | . 1 . Traps | -11 -10 -10 ------- Run | Yrd Mat Min Traps Triggered 1 | . 1 . Indirectly . | . . . Trap Hack Attempts . | . . . Triggered . | . . . Disarmed . | . . . Reprogrammed . | . . . Reused . | . . . Traps Extracted . | . . . Installed . | . . . Triggered . | . . . Machines | -11 -10 -10 ---------- Run | Yrd Mat Min Machines Disabled 7 | . 6 1 Max in Single Turn 2 | . 2 1 Machines Repaired . | . . . Machines Dismantled . | . . . Machines Sabotaged . | . . . Overloaded Fab Kills . | . . . Hacking | -11 -10 -10 --------- Run | Yrd Mat Min Machines Accessed 5 | . 5 . Terminals 3 | . 3 . Fabricators . | . . . Repair Stations 1 | . 1 . Recycling Units 1 | . 1 . Scanalyzers . | . . . Garrison Access . | . . . Total Hacks 14 | . 14 . Successful 12 | . 12 . Failed 2 | . 2 . Catastrophic . | . . . Database Lockouts . | . . . Manual . | . . . Terminals 5 | . 5 . Fabricators . | . . . Repair Stations 3 | . 3 . Recycling Units 6 | . 6 . Scanalyzers . | . . . Garrison Access . | . . . Terminal Hacks 5 | . 5 . Record 2 | . 2 . Prototype ID Bank 1 | . 1 . Hauler Manifests 2 | . 2 . Fabricator Hacks . | . . . Repair Station Hacks 3 | . 3 . Scan Component 1 | . 1 . Repair 1 | . 1 . Refit 1 | . 1 . Recycling Unit Hacks 4 | . 4 . Recycle Component 3 | . 3 . Process 1 | . 1 . Scanalyzer . | . . . Garrison Access Hacks . | . . . Unauthorized Hacks . | . . . Terminals . | . . . Fabricators . | . . . Repair Stations . | . . . Recycling Units . | . . . Scanalyzers . | . . . Garrison Access . | . . . Data Cores Recovered . | . . . Used . | . . . Hacking Detections 3 | . 3 . Full Trace Events 1 | . 1 . Feedback Events . | . . . Feedback Blocked . | . . . Robot Schematics Acquired . | . . . Robots Built . | . . . Authchips . | . . . Time . | . . . Total Robot Build Rating . | . . . Part Schematics Acquired . | . . . Parts Built . | . . . Authchips . | . . . Time . | . . . Total Part Build Rating . | . . . Parts Repaired 1 | . 1 . Time 26 | . 26 . Parts Recycled 3 | . 3 . Recycled Matter 66 | . 66 . Retrieved Matter . | . . . Retrieved Components . | . . . Parts Scanalyzed . | . . . Part Schematics Acquired . | . . . Parts Damaged . | . . . Bothacking | -11 -10 -10 ------------ Run | Yrd Mat Min Used RIF Installer . | . . . Robots Hacked . | . . . Non-combat . | . . . Combat . | . . . Robot Hacks Applied . | . . . Relay Couplers Released . | . . . Fabnet Peak Effective % . | . . . Robots Rewired . | . . . Allies Hacked . | . . . Hacks Repelled . | . . . Allies | -11 -10 -10 -------- Run | Yrd Mat Min Total Allies . | . . . Largest Group . | . . . Highest-Rated Group . | . . . Highest-Rated Ally . | . . . Total Orders . | . . . Ally Attacks . | . . . Total Damage . | . . . Kills . | . . . Allies Corrupted . | . . . Allies Melted . | . . . Intel | -11 -10 -10 ------- Run | Yrd Mat Min Robot Analysis Total . | . . . Derelict Logs Recovered . | . . . Drone Launches . | . . . Drone Recoveries . | . . . Exploration | -11 -10 -10 ------------- Run | Yrd Mat Min Turns Passed 2220 | 126 1644 450 Spaces Moved 948 | 60 725 163 Core 50 | 11 39 . Treads 898 | 49 686 163 Legs . | . . . Wheels . | . . . Hover . | . . . Flight . | . . . Fastest Speed 50 | 50 160 240 Average Speed 197 | 139 192 240 Slowest Speed 500 | 160 500 240 Overloaded Moves . | . . . Propulsion Burnouts . | . . . Robots Hopped . | . . . Cave-ins Triggered 1 | . . 1 Exploration Rate (%) 42 | 5 81 40 Regions Visited 2 Branch Regions 1 Pre-discovered Areas . | . . . Known Exits Taken . | . . . Unknown Exits Taken 2 | 1 1 . Scrap Searched . | . . . Spaces Dug 54 | . . 54 Terrain Destroyed 92 | . 38 54 Melee . | . . . Projectile 1 | . 1 . AOE 91 | . 37 54 Terrain Rammed . | . . . Walls Destroyed . | . . . Machines Disabled . | . . . Actions | -11 -10 -10 --------- Run | Yrd Mat Min Total 1146 | 87 869 190 Wait 29 | . 29 . Move 945 | 59 724 162 Hop . | . . . Pick Up 32 | 7 23 2 Fast Attach . | . . . Attach 20 | 6 11 3 Detach 5 | . 3 2 Swap 5 | . 4 1 Drop 2 | . 2 . Fire 107 | 15 73 19 Melee . | . . . Ram . | . . . Kick . | . . . Crush . | . . . Escape Stasis 1 | . . 1 Rewire . | . . . Trap . | . . . Miscellaneous . | . . . Route ------- -11/Scrapyard -10/Materials (discovered 4 exits: [*Mat x2] / [*Min x2]) -10/Mines History --------- Turn | Location | Event 7 | -11/Scrapyard | Discovered new exit (range 15) 127 | -11/Scrapyard | Entered Materials 288 | -10/Materials | Discovered new exit (range 5) 305 | -10/Materials | Build established: Mutant 693 | -10/Materials | Core integrity fell below 50% 699 | -10/Materials | Lost 4 parts (1p1n2w) 700 | -10/Materials | Discovered new exit (range 13) 1227 | -10/Materials | Repaired Lgt. Cannon 1333 | -10/Materials | Discovered new exit (range 13) 1409 | -10/Materials | Discovered new exit (range 8) 1771 | -10/Materials | Entered Mines 2076 | -10/Mines | Received a Rocket Launcher from a helpful Derelict 2142 | -10/Mines | Core integrity fell below 20% 2179 | -10/Mines | Crushed by falling debris 2221 | -10/Mines | Destroyed by S-10 Pest with Light Assault Rifle Last Messages --------------- 02076_ 97-9VM(g) slips back into the shadows. 02081_ Acquired Rocket Launcher. 02157_ The unstable cave ceiling collapses. Open spaces previously occupied by now-destroyed walls and earth have a slight glow to them. Consecutive moves through these unstable areas may cause a cave-in, but only if doing so for extended periods. Tunneling a short distance between rooms is safe unless the area was destabilized by an explosion. 02179_ The unstable cave ceiling collapses. 02179_ Crushed by falling debris. [Achievement: Unlikely Earthworm] 02179_ Lgt. Assault Rifle destroyed. 02179_ System corrupted by crushing effect (+2). 02185_ The unstable cave ceiling collapses. 02209_ Pulverizer disabled. 02210_ U-05 Engineer lays Concrete. 02212_ S-10 Pest destroyed. 02212_ U-05 Engineer lays Concrete. Map ----- +----------------------------------------------------+ | ?????????????????????????????????????## | | ?????????????????????????????????????# | | ?????????????????????????????????????# ### | | ????????????????????????????????????## ##?? | | ???????????????????????????????????## #??? | | ??????????????????????????????????## ##?? | | ??????????????????????????????????# #?? | | ??????????????????????????????????# #?? | | ??????????????????????????????????## #?? | | ???????????????????????????????????# ##?# | | ??????????????????????????????????## #### | | ?????????????????????????????????## ## | | ??????????? ??????????????######## | | ???????????? ???????????### ## | | ???????????? ?????????# ## | | ?????????????# ????????# ###### # | | ????????????## ######### # #????## ## | | ???????????? ## # #?????####? | | ????????????"" """" # # ##?######??? | | ???????????""" """" ## #### #### | | ??????????"""" """" ## ## | | ????????# ## ### | | ??????????"""" """" # #### ##?? | | ???????????""" """" ###??### ######??# | | ??????????"""" """" ### #??????#####??????## | | ????????# s @#?###????????????????## | | ??????????"""" """" #????????????????????# | | ???????????""" """ #????????????????????# | | ????????????"" """ %s#????????????????????# | | ????????????? #????????????????????### | | ????????????? ???????????????????????? | | ???????????? ???????????????????????? | | ????????????#########???????????????????????? | | ????????????????????????????????????????????? | | | | | | | | | | | | | | | | | | | | | | | | | | | | | | | | | +----------------------------------------------------+ Best States ------------- Heat Dissipation 25 Energy Generation 10 Energy Capacity 250 Matter Stores 282 Matter Capacity 300 Sight Range 16 Terrain Scan Density 10 Evasion (%) 50 Recoil Reduction 2 Item Schematics ----------------- None Robot Schematics ------------------ None Fabricated ------------ Nothing Alien Tech Used ----------------- None Achievements -------------- Part-time Mechanic Unlikely Earthworm Challenges ------------ None Game ------ Seed MetafieldTitaniumMachine Manual? 0 Play Time 00:17:20 Cumulative 2.7 hours Start 2025.05.02 @ 16:32:09 End 2025.05.02 @ 16:47:16 Sessions 1 Manual Loads 0 Difficulty Rogue Special Mode None Game No. 6 Rogue 6 Adventurer 0 Explorer 0 Win Type - Total 0 Types 0/0/0/0/0/0/0/0/0 Lore% 3 Gallery% 7 Achievement% 7 Wizard Run 0 Options --------- Layout 1 ASCII 0 Keyboard 0 Movement Mouse Keybinds 0 Fullscreen 1 Font 24/Smallcaps Map View 50x35 Zoom Use 0% Tactical HUD 1 Map Filters NONE Filters NONE Steam 1 RUN: 96b2bb13-b43b-4298-a8ea-375993bddfb0